fUSD/lending_fUSD_20240329
["ID","MTS","AMOUNT","RATE_DAILY","PERIOD"]
[320981029,1711727452561,-500.0,0.00053972,120]
[320981030,1711727452571,-500.0,0.00053972,120]
[320981031,1711727452580,-500.0,0.00053972,120]
[320981032,1711727452589,-500.0,0.00053972,120]
[320981033,1711727452599,-502.83,0.00053972,120]
[320981034,1711727452609,-500.0,0.00053972,120]
[320981035,1711727452618,-500.0,0.00053972,120]
[320981036,1711727452629,-1556.54,0.00053972,120]
[320981037,1711727452638,-659.08,0.00053972,120]
[320981038,1711727452647,-935.94,0.00053972,120]
[320981039,1711727452656,-500.0,0.00053972,120]
[320981040,1711727452665,-543.31,0.00053972,120]
[320981041,1711727452674,-500.0,0.00053972,2]
[320981042,1711727452683,-1414.23,0.00053972,120]
[320981043,1711727452693,-774.8,0.00053972,120]
[320981044,1711727452702,-500.0,0.00053972,120]
[320981045,1711727452711,-168.57,0.00053972,120]
[320981046,1711727452721,-500.0,0.00053972,120]
[320981047,1711727452730,-8767.87,0.00053972,120]
[320981048,1711727452739,-500.0,0.00053972,120]
[320981049,1711727452749,-4545.9,0.00053972,120]
[320981050,1711727452758,-500.0,0.00053972,120]
[320981051,1711727452767,-1435.29,0.00053972,120]
[320981052,1711727452776,-614.95,0.00053972,120]
[320981053,1711727452786,-729.96,0.00053972,120]
[320981054,1711727452795,-628.83,0.00053972,120]
[320981055,1711727452805,-509.47,0.00053972,120]
[320981056,1711727452814,-724.91,0.00053972,120]
[320981057,1711727452823,-1918.37,0.00053972,120]
[320981058,1711727452833,-916.59,0.00053972,120]
[320981059,1711727452842,-500.0,0.00053972,120]
[320981060,1711727452851,-500.0,0.00053972,120]
[320981061,1711727452860,-852.8,0.00053972,120]
[320981062,1711727452869,-500.0,0.00053972,120]
[320981063,1711727452878,-500.0,0.00053972,120]
[320981064,1711727452887,-960.04,0.00053972,120]
[320981065,1711727452897,-581.19,0.00053972,120]
[320981066,1711727452906,-500.0,0.00053972,120]
[320981067,1711727452915,-5112.99,0.00053972,120]
[320981068,1711727452924,-500.0,0.00053972,120]
[320981069,1711727452934,-500.0,0.00053972,120]
[320981070,1711727452943,-1097.14,0.00053972,120]
[320981071,1711727452952,-3742.34,0.00053972,120]
[320981072,1711727452962,-500.0,0.00053972,120]
[320981073,1711727452973,-500.0,0.00053972,120]
[320981074,1711727452982,-1281.54,0.00053972,120]
[320981075,1711727452991,-500.0,0.00053972,120]
[320981076,1711727453001,-500.0,0.00053972,120]
[320981077,1711727453011,-501.49,0.00053972,120]
[320981078,1711727453020,-500.0,0.00053972,120]
[320981079,1711727453030,-500.0,0.00053972,120]
[320981080,1711727453039,-2596.86,0.00053972,120]
[320981081,1711727453048,-585.91,0.00053972,120]
[320981082,1711727453058,-1518.44,0.00053972,120]
[320981083,1711727453067,-6048.06,0.00053972,120]
[320981084,1711727453077,-500.0,0.00053972,120]
[320981085,1711727453086,-1161.06,0.00053972,120]
[320981086,1711727453095,-500.0,0.00053972,120]
[320981087,1711727453105,-745.62,0.00053972,120]
[320981088,1711727453114,-500.0,0.00053972,120]
[320981089,1711727453124,-1559.57,0.00053972,120]
[320981090,1711727453133,-2450.8,0.00053972,120]
[320981091,1711727453142,-500.0,0.00053972,120]
[320981092,1711727453152,-2642.03,0.00053972,120]
[320981093,1711727453161,-1403.63,0.00053972,120]
[320981094,1711727453170,-2002.47,0.00053972,120]
[320981095,1711727453180,-500.0,0.00053972,120]
[320981096,1711727453189,-500.0,0.00053972,120]
[320981097,1711727453198,-500.0,0.00053972,120]
[320981098,1711727453207,-3231.44,0.00053972,120]
[320981099,1711727453217,-1180.94,0.00053972,120]
[320981100,1711727453226,-3834.73,0.00053972,21]
[320981101,1711727453235,-1463.13,0.00053972,120]
[320981102,1711727453244,-500.0,0.00053972,120]
[320981103,1711727453253,-1395.72,0.00053972,120]
[320981104,1711727453263,-1805.89,0.00053972,120]
[320981105,1711727453272,-1942.66,0.00053972,120]
[320981106,1711727453282,-4514.05,0.00053972,120]
[320981107,1711727453291,-742.08,0.00053972,120]
[320981108,1711727453300,-733.91,0.00053972,120]
[320981109,1711727453309,-1636.77,0.00053972,120]
[320981110,1711727453318,-612.5,0.00053972,120]
[320981111,1711727453327,-500.0,0.00053972,120]
[320981112,1711727453337,-500.0,0.00053972,120]
[320981113,1711727453346,-2474.6,0.00053972,120]
[320981114,1711727453355,-1947.96,0.00053972,120]
[320981115,1711727453364,-500.0,0.00053972,120]
[320981116,1711727453373,-802.89,0.00053972,120]
[320981117,1711727453383,-500.0,0.00053972,120]
[320981118,1711727453392,-2662.27,0.00053972,120]
[320981119,1711727453401,-949.51,0.00053972,120]
[320981120,1711727453410,-500.0,0.00053972,120]
[320981121,1711727453419,-500.0,0.00053972,120]
[320981122,1711727453429,-500.0,0.00053972,120]
[320981123,1711727453438,-500.0,0.00053972,120]
[320981124,1711727453447,-500.04,0.00053972,120]
[320981125,1711727453459,-1925.65,0.00053972,120]
[320981126,1711727453469,-500.0,0.00053972,120]
[320981127,1711727453478,-3660.18,0.00053972,120]
[320981128,1711727453487,-500.0,0.00053972,120]
[320981129,1711727453497,-500.0,0.00053972,120]
[320981130,1711727453507,-500.0,0.00053972,120]
[320981131,1711727453516,-3065.63,0.00053972,120]
[320981132,1711727453525,-550.56,0.00053972,120]
[320981133,1711727453535,-258.04,0.00053972,120]
[320981134,1711727453546,-500.0,0.00053972,120]
[320981135,1711727453555,-3205.63,0.00053972,120]
[320981136,1711727453565,-500.0,0.00053972,120]
[320981137,1711727453574,-1058.7,0.00053972,120]
[320981138,1711727453583,-440.46629104,0.00053972,120]
[320981139,1711727453592,-500.0,0.00053972,120]
[320981140,1711727453602,-500.0,0.00053972,120]
[320981141,1711727453611,-3495.3,0.00053972,120]
[320981142,1711727453621,-2680.22,0.00053972,120]
[320981143,1711727453630,-500.0,0.00053972,120]
[320981144,1711727453639,-2574.1,0.00053972,120]
[320981145,1711727453649,-500.0,0.00053972,120]
[320981146,1711727453658,-520.8,0.00053972,120]
[320981147,1711727453667,-2324.45,0.00053972,120]
[320981148,1711727453677,-525.6,0.00053972,120]
[320981149,1711727453686,-1064.04,0.00053972,120]
[320981150,1711727453696,-206.0,0.00053978,15]
[320981151,1711727453706,-150.0,0.00053978,7]
[320981152,1711727453715,-150.5,0.0005398,15]
[320981153,1711727453725,-261.0,0.0005398,15]
[320981154,1711727453734,-1000.0,0.00053988,2]
[320981155,1711727453744,-100000.0,0.00053988,2]
[320981156,1711727453754,-39827.2204,0.00053988,2]
[320981157,1711727453763,-5734.8876826,0.0005399,2]
[320981158,1711727453773,-754.66119743,0.0005399,2]
[320981159,1711727453782,-12968.9649663,0.0005399,2]
[320981160,1711727453793,-150.0,0.00053994,7]
[320981161,1711727453806,-150.0,0.00053998,7]
[320981162,1711727453816,-150.0,0.00053999,7]
[320981163,1711727453827,-83155.80244975,0.00054,2]
[320981164,1711727453837,-599.99999901,0.00054,55]
[320981165,1711727453847,-207.29,0.00054,14]
[320981166,1711727453856,-500.0,0.00054,7]
[320981167,1711727453866,-500.0,0.00054,7]
[320981168,1711727453876,-500.0,0.00054,7]
[320981169,1711727453885,-650.0,0.00054,120]
[320981170,1711727453895,-16757.15159405,0.00054,2]
[320981171,1711727453905,-500.0,0.00054,60]
[320981172,1711727453915,-226.58,0.00054,7]
[320981173,1711727453925,-2000.0,0.00054,15]
[320981174,1711727453935,-200.0,0.00054,15]
[320981175,1711727453945,-2000.0,0.00054,15]
[320981176,1711727453955,-200.0,0.00054,15]
[320981177,1711727453966,-809.92,0.00054,7]
[320981178,1711727453977,-151.18226642,0.00054012,59]
[320981179,1711727453987,-207.17777778,0.00054027,120]
[320981180,1711727453997,-1070.14726892,0.00054146,120]
[320981181,1711727454007,-4947.42441221,0.00054146,2]
[320981182,1711727454018,-156.75045086,0.00054146,2]
[320981183,1711727454027,-157.73362987,0.00054206,60]
[320981184,1711727454036,-500.0,0.00054246,120]
[320981185,1711727454044,-585.22,0.00054246,120]
[320981186,1711727454054,-186.07,0.00054246,120]
[320981187,1711727454064,-531.63,0.00054246,120]
[320981188,1711727454073,-500.0,0.00054246,120]
[320981189,1711727454082,-240.36,0.00054246,120]
[320981190,1711727454091,-500.0,0.00054246,120]
[320981191,1711727454101,-500.0,0.00054246,120]
[320981192,1711727454112,-493.39,0.00054246,120]
[320981193,1711727454122,-500.0,0.00054246,120]
[320981194,1711727454131,-172.55073549,0.00054246,120]
[320981195,1711727454141,-500.0,0.00054246,120]
[320981196,1711727454151,-500.0,0.00054246,120]
[320981197,1711727454161,-150.0,0.00054246,120]
[320981198,1711727454170,-500.0,0.00054246,120]
[320981199,1711727454180,-394.71109236,0.00054246,120]
[320981200,1711727454236,-500.0,0.00054246,120]
[320981201,1711727454246,-500.0,0.00054246,120]
[320981202,1711727454255,-500.0,0.00054246,120]
[320981203,1711727454264,-500.0,0.00054246,120]
[320981204,1711727454273,-500.0,0.00054246,120]
[320981205,1711727454283,-470.67495068,0.00054246,120]
[320981206,1711727454293,-500.0,0.00054246,120]
[320981207,1711727454302,-1556.54,0.00054246,120]
[320981208,1711727454312,-659.08,0.00054246,120]
[320981209,1711727454321,-935.94,0.00054246,120]
[320981210,1711727454330,-500.0,0.00054246,120]
[320981211,1711727454340,-543.31,0.00054246,120]
[320981212,1711727454349,-500.0,0.00054246,2]
[320981213,1711727454359,-1414.23,0.00054246,120]
[320981214,1711727454367,-774.8,0.00054246,120]
[320981215,1711727454377,-500.0,0.00054246,120]
[320981216,1711727454385,-500.0,0.00054246,120]
[320981217,1711727454394,-8767.87,0.00054246,120]
[320981218,1711727454403,-500.0,0.00054246,120]
[320981219,1711727454413,-4545.9,0.00054246,120]
[320981220,1711727454422,-500.0,0.00054246,120]
[320981221,1711727454431,-1435.29,0.00054246,120]
[320981222,1711727454440,-729.96,0.00054246,120]
[320981223,1711727454449,-614.95,0.00054246,120]
[320981224,1711727454458,-628.83,0.00054246,120]
[320981225,1711727454473,-509.47,0.00054246,120]
[320981226,1711727454482,-724.91,0.00054246,120]
[320981227,1711727454491,-1918.37,0.00054246,120]
[320981228,1711727454501,-916.59,0.00054246,120]
[320981229,1711727454511,-500.0,0.00054246,120]
[320981230,1711727454520,-500.0,0.00054246,120]
[320981231,1711727454529,-852.8,0.00054246,120]
[320981232,1711727454538,-500.0,0.00054246,120]
[320981233,1711727454547,-500.0,0.00054246,120]
[320981234,1711727454557,-960.04,0.00054246,120]
[320981235,1711727454567,-581.19,0.00054246,120]
[320981236,1711727454577,-500.0,0.00054246,120]
[320981237,1711727454586,-5112.99,0.00054246,120]
[320981238,1711727454596,-500.0,0.00054246,120]
[320981239,1711727454606,-500.0,0.00054246,120]
[320981240,1711727454615,-1097.14,0.00054246,120]
[320981241,1711727454624,-3742.34,0.00054246,120]
[320981242,1711727454634,-500.0,0.00054246,120]
[320981243,1711727454644,-500.0,0.00054246,120]
[320981244,1711727454653,-1281.54,0.00054246,120]
[320981245,1711727454663,-500.0,0.00054246,120]
[320981246,1711727454673,-500.0,0.00054246,120]
[320981247,1711727454682,-501.49,0.00054246,120]
[320981248,1711727454692,-500.0,0.00054246,120]
[320981249,1711727454701,-500.0,0.00054246,120]
[320981250,1711727454710,-2596.86,0.00054246,120]
[320981251,1711727454720,-1518.44,0.00054246,120]
[320981252,1711727454729,-585.91,0.00054246,120]
[320981253,1711727454739,-6048.06,0.00054246,120]
[320981254,1711727454748,-500.0,0.00054246,120]
[320981255,1711727454758,-1161.06,0.00054246,120]
[320981256,1711727454767,-500.0,0.00054246,120]
[320981257,1711727454777,-745.62,0.00054246,120]
[320981258,1711727454786,-500.0,0.00054246,120]
[320981259,1711727454796,-1559.57,0.00054246,120]
[320981260,1711727454806,-2450.8,0.00054246,120]
[320981261,1711727454816,-500.0,0.00054246,120]
[320981262,1711727454826,-2642.03,0.00054246,120]
[320981263,1711727454835,-1403.63,0.00054246,120]
[320981264,1711727454845,-2002.47,0.00054246,120]
[320981265,1711727454855,-500.0,0.00054246,120]
[320981266,1711727454864,-500.0,0.00054246,120]
[320981267,1711727454873,-500.0,0.00054246,120]
[320981268,1711727454883,-3231.44,0.00054246,120]
[320981269,1711727454892,-1180.94,0.00054246,120]
[320981270,1711727454901,-3834.73,0.00054246,21]
[320981271,1711727454910,-1463.13,0.00054246,120]
[320981272,1711727454918,-500.0,0.00054246,120]
[320981273,1711727454928,-1395.72,0.00054246,120]
[320981274,1711727454937,-1805.89,0.00054246,120]
[320981275,1711727454946,-1942.66,0.00054246,120]
[320981276,1711727454955,-1171.63,0.00054246,120]
[320981277,1711727454964,-4514.05,0.00054246,120]
[320981278,1711727454974,-742.08,0.00054246,120]
[320981279,1711727454983,-733.91,0.00054246,120]
[320981280,1711727454992,-1636.77,0.00054246,120]
[320981281,1711727455001,-612.5,0.00054246,120]
[320981282,1711727455010,-500.0,0.00054246,120]
[320981283,1711727455019,-500.0,0.00054246,120]
[320981284,1711727455029,-2474.6,0.00054246,120]
[320981285,1711727455038,-1947.96,0.00054246,120]
[320981286,1711727455047,-258.97482206,0.00054246,120]
[320981287,1711727455057,-802.89,0.00054246,120]
[320981288,1711727455066,-500.0,0.00054246,120]
[320981289,1711727455076,-2662.27,0.00054246,120]
[320981290,1711727455086,-949.51,0.00054246,120]
[320981291,1711727455095,-500.0,0.00054246,120]
[320981292,1711727455105,-500.0,0.00054246,120]
[320981293,1711727455114,-500.0,0.00054246,120]
[320981294,1711727455123,-500.0,0.00054246,120]
[320981295,1711727455132,-1925.65,0.00054246,120]
[320981296,1711727455141,-500.04,0.00054246,120]
[320981297,1711727455150,-500.0,0.00054246,120]
[320981298,1711727455159,-3660.18,0.00054246,120]
[320981299,1711727455168,-500.0,0.00054246,120]
[320981300,1711727455179,-599.78,0.00054246,120]
[320981301,1711727455188,-500.0,0.00054246,120]
[320981302,1711727455197,-3065.63,0.00054246,120]
[320981303,1711727455206,-550.56,0.00054246,120]
[320981304,1711727455216,-500.0,0.00054246,120]
[320981305,1711727455226,-3205.63,0.00054246,120]
[320981306,1711727455235,-500.0,0.00054246,120]
[320981307,1711727455244,-1058.7,0.00054246,120]
[320981308,1711727455254,-500.0,0.00054246,120]
[320981309,1711727455263,-500.0,0.00054246,120]
[320981310,1711727455273,-3495.3,0.00054246,120]
[320981311,1711727455282,-2680.22,0.00054246,120]
[320981312,1711727455292,-500.0,0.00054246,120]
[320981313,1711727455301,-2574.1,0.00054246,120]
[320981314,1711727455310,-500.0,0.00054246,120]
[320981315,1711727455319,-520.8,0.00054246,120]
[320981316,1711727455328,-525.6,0.00054246,120]
[320981317,1711727455337,-1064.04,0.00054246,120]
[320981318,1711727455346,-2324.45,0.00054246,120]
[320981319,1711727455356,-150.0,0.00054252,120]
[320981320,1711727455365,-1290.62,0.00054253,120]
[320981321,1711727455374,-150.0,0.00054253,120]
[320981322,1711727455383,-150.0,0.00054253,120]
[320981323,1711727455392,-150.0,0.00054253,120]
[320981324,1711727455401,-1170.77280023,0.00054279,120]
[320981325,1711727455410,-1611.06959,0.000543,69]
[320981326,1711727455419,-739.00918773,0.000544,14]
[320981327,1711727455429,-1050.24886909,0.00054409,2]
[320981328,1711727455438,-19884.37747657,0.00054412,7]
[320981329,1711727455447,-231.38404805,0.0005442,2]
[320981330,1711727455457,-237.36119489,0.00054427,120]
[320981331,1711727455470,-168.63839945,0.00054428,60]
[320981332,1711727455480,-151.0,0.00054438,120]
[320981333,1711727455489,-1493.20975127,0.00054506,120]
[320981334,1711727455498,-500.0,0.0005452,120]
[320981335,1711727455509,-364.29905002,0.0005452,120]
[320981336,1711727455518,-500.0,0.0005452,120]
[320981337,1711727455527,-500.0,0.0005452,120]
[320981338,1711727455536,-500.0,0.0005452,120]
[320981339,1711727455547,-342.5426911,0.0005452,120]
[320981340,1711727455557,-500.0,0.0005452,120]
[320981341,1711727455566,-150.0,0.0005452,120]
[320981342,1711727455575,-500.0,0.0005452,120]
[320981343,1711727455584,-500.0,0.0005452,120]
[320981344,1711727455593,-500.0,0.0005452,120]
[320981345,1711727455602,-401.19392758,0.0005452,120]
[320981346,1711727455613,-500.0,0.0005452,120]
[320981347,1711727455623,-500.0,0.0005452,120]
[320981348,1711727455632,-1556.54,0.0005452,120]
[320981349,1711727455641,-659.08,0.0005452,120]
[320981350,1711727455650,-935.94,0.0005452,120]
[320981351,1711727455659,-500.0,0.0005452,120]
[320981352,1711727455668,-543.31,0.0005452,120]
[320981353,1711727455677,-500.0,0.0005452,2]
[320981354,1711727455686,-1414.23,0.0005452,120]
[320981355,1711727455696,-774.8,0.0005452,120]
[320981356,1711727455705,-500.0,0.0005452,120]
[320981357,1711727455715,-500.0,0.0005452,120]
[320981358,1711727455725,-8767.87,0.0005452,120]
[320981359,1711727455734,-500.0,0.0005452,120]
[320981360,1711727455743,-4545.9,0.0005452,120]
[320981361,1711727455753,-500.0,0.0005452,120]
[320981362,1711727455762,-1435.29,0.0005452,120]
[320981363,1711727455771,-729.96,0.0005452,120]
[320981364,1711727455780,-614.95,0.0005452,120]
[320981365,1711727455790,-628.83,0.0005452,120]
[320981366,1711727455799,-509.47,0.0005452,120]
[320981367,1711727455808,-724.91,0.0005452,120]
[320981368,1711727455817,-1918.37,0.0005452,120]
[320981369,1711727455828,-916.59,0.0005452,120]
[320981370,1711727455837,-500.0,0.0005452,120]
[320981371,1711727455845,-500.0,0.0005452,120]
[320981372,1711727455855,-852.8,0.0005452,120]
[320981373,1711727455864,-500.0,0.0005452,120]
[320981374,1711727455874,-500.0,0.0005452,120]
[320981375,1711727455883,-960.04,0.0005452,120]
[320981376,1711727455892,-581.19,0.0005452,120]
[320981377,1711727455901,-649.72963089,0.0005452,120]
[320981378,1711727455909,-5112.99,0.0005452,120]
[320981379,1711727455919,-500.0,0.0005452,120]
[320981380,1711727455928,-500.0,0.0005452,120]
[320981381,1711727455937,-1097.14,0.0005452,120]
[320981382,1711727455946,-3742.34,0.0005452,120]
[320981383,1711727455955,-500.0,0.0005452,120]
[320981384,1711727455964,-159.1,0.0005452,120]
[320981385,1711727455975,-1281.54,0.0005452,120]
[320981386,1711727455984,-500.0,0.0005452,120]
[320981387,1711727455993,-170.67,0.0005452,120]
[320981388,1711727456002,-500.0,0.0005452,120]
[320981389,1711727456011,-501.49,0.0005452,120]
[320981390,1711727456020,-500.0,0.0005452,120]
[320981391,1711727456029,-2596.86,0.0005452,120]
[320981392,1711727456038,-585.91,0.0005452,120]
[320981393,1711727456047,-1518.44,0.0005452,120]
[320981394,1711727456056,-6048.06,0.0005452,120]
[320981395,1711727456066,-500.0,0.0005452,120]
[320981396,1711727456075,-1161.06,0.0005452,120]
[320981397,1711727456084,-500.0,0.0005452,120]
[320981398,1711727456093,-745.62,0.0005452,120]
[320981399,1711727456101,-500.0,0.0005452,120]
[320981400,1711727456111,-1559.57,0.0005452,120]
[320981401,1711727456120,-2450.8,0.0005452,120]
[320981402,1711727456129,-500.0,0.0005452,120]
[320981403,1711727456138,-2642.03,0.0005452,120]
[320981404,1711727456147,-1403.63,0.0005452,120]
[320981405,1711727456157,-2002.47,0.0005452,120]
[320981406,1711727456166,-500.0,0.0005452,120]
[320981407,1711727456175,-500.0,0.0005452,120]
[320981408,1711727456184,-500.0,0.0005452,120]
[320981409,1711727456194,-3231.44,0.0005452,120]
[320981410,1711727456203,-1180.94,0.0005452,120]
[320981411,1711727456213,-3834.73,0.0005452,21]
[320981412,1711727456223,-1463.13,0.0005452,120]
[320981413,1711727456232,-500.0,0.0005452,120]
[320981414,1711727456241,-1395.72,0.0005452,120]
[320981415,1711727456251,-1805.89,0.0005452,120]
[320981416,1711727456260,-1942.66,0.0005452,120]
[320981417,1711727456269,-4514.05,0.0005452,120]
[320981418,1711727456278,-742.08,0.0005452,120]
[320981419,1711727456288,-733.91,0.0005452,120]
[320981420,1711727456298,-1636.77,0.0005452,120]
[320981421,1711727456308,-612.5,0.0005452,120]
[320981422,1711727456317,-500.0,0.0005452,120]
[320981423,1711727456326,-500.0,0.0005452,120]
[320981424,1711727456335,-2474.6,0.0005452,120]
[320981425,1711727456345,-1947.96,0.0005452,120]
[320981426,1711727456354,-802.89,0.0005452,120]
[320981427,1711727456364,-500.0,0.0005452,120]
[320981428,1711727456373,-2662.27,0.0005452,120]
[320981429,1711727456382,-949.51,0.0005452,120]
[320981430,1711727456391,-164.66,0.0005452,120]
[320981431,1711727456400,-500.0,0.0005452,120]
[320981432,1711727456409,-500.0,0.0005452,120]
[320981433,1711727456418,-567.57,0.0005452,120]
[320981434,1711727456427,-1925.65,0.0005452,120]
[320981435,1711727456436,-500.04,0.0005452,120]
[320981436,1711727456445,-500.0,0.0005452,120]
[320981437,1711727456456,-3660.18,0.0005452,120]
[320981438,1711727456470,-500.0,0.0005452,120]
[320981439,1711727456479,-500.0,0.0005452,120]
[320981440,1711727456489,-3065.63,0.0005452,120]
[320981441,1711727456499,-550.56,0.0005452,120]
[320981442,1711727456510,-500.0,0.0005452,120]
[320981443,1711727456519,-3205.63,0.0005452,120]
[320981444,1711727456529,-500.0,0.0005452,120]
[320981445,1711727456540,-1058.7,0.0005452,120]
[320981446,1711727456550,-500.0,0.0005452,120]
[320981447,1711727456559,-3495.3,0.0005452,120]
[320981448,1711727456568,-500.0,0.0005452,120]
[320981449,1711727456578,-2680.22,0.0005452,120]
[320981450,1711727456588,-500.0,0.0005452,120]
[320981451,1711727456597,-2574.1,0.0005452,120]
[320981452,1711727456606,-500.0,0.0005452,120]
[320981453,1711727456616,-520.8,0.0005452,120]
[320981454,1711727456626,-525.6,0.0005452,120]
[320981455,1711727456635,-1064.04,0.0005452,120]
[320981456,1711727456645,-2324.45,0.0005452,120]
[320981457,1711727456655,-2417.23504057,0.00054584,31]
[320981458,1711727456664,-208.03707595,0.000546,7]
[320981459,1711727456674,-207.17777778,0.0005463,120]
[320981460,1711727456683,-1493.20975128,0.00054689,120]
[320981461,1711727456693,-172.78124824,0.00054694,53]
[320981462,1711727456702,-226.58,0.000547,7]
[320981463,1711727456712,-5229.99453111,0.00054792,32]
[320981464,1711727456721,-200.0,0.00054794,120]
[320981465,1711727456730,-200.0,0.00054794,120]
[320981466,1711727456740,-200.0,0.00054794,120]
[320981467,1711727456749,-200.0,0.00054794,120]
[320981468,1711727456759,-200.0,0.00054794,120]
[320981469,1711727456768,-200.0,0.00054794,120]
[320981470,1711727456777,-200.0,0.00054794,120]
[320981471,1711727456786,-200.0,0.00054794,120]
[320981472,1711727456795,-200.0,0.00054794,120]
[320981473,1711727456805,-200.0,0.00054794,120]
[320981474,1711727456815,-206.1102278,0.00054794,120]
[320981475,1711727456824,-1000.0,0.00054794,120]
[320981476,1711727456834,-1000.0,0.00054794,120]
[320981477,1711727456843,-1000.0,0.00054794,120]
[320981478,1711727456852,-1000.0,0.00054794,120]
[320981479,1711727456861,-1000.0,0.00054794,120]
[320981480,1711727456870,-1019.27363398,0.00054794,120]
[320981481,1711727456879,-500.0,0.00054794,120]
[320981482,1711727456889,-500.0,0.00054794,120]
[320981483,1711727456898,-500.0,0.00054794,120]
[320981484,1711727456907,-500.0,0.00054794,120]
[320981485,1711727456916,-500.0,0.00054794,120]
[320981486,1711727456925,-500.0,0.00054794,120]
[320981487,1711727456934,-500.0,0.00054794,120]
[320981488,1711727456943,-500.0,0.00054794,120]
[320981489,1711727456952,-500.0,0.00054794,120]
[320981490,1711727456961,-263.85132664,0.00054794,120]
[320981491,1711727456970,-500.0,0.00054794,120]
[320981492,1711727456979,-500.0,0.00054794,120]
[320981493,1711727456988,-500.0,0.00054794,120]
[320981494,1711727456997,-244.17,0.00054794,120]
[320981495,1711727457007,-150.0,0.00054794,120]
[320981496,1711727457017,-500.0,0.00054794,120]
[320981497,1711727457026,-362.68247336,0.00054794,120]
[320981498,1711727457034,-500.0,0.00054794,120]
[320981499,1711727457043,-314.17176105,0.00054794,120]
[320981500,1711727457053,-486.66,0.00054794,120]
[320981501,1711727457062,-666.0,0.00054794,120]
[320981502,1711727457071,-500.0,0.00054794,120]
[320981503,1711727457080,-1061.14085781,0.00054794,120]
[320981504,1711727457089,-500.0,0.00054794,120]
[320981505,1711727457098,-1556.54,0.00054794,120]
[320981506,1711727457107,-659.08,0.00054794,120]
[320981507,1711727457116,-935.94,0.00054794,120]
[320981508,1711727457125,-500.0,0.00054794,120]
[320981509,1711727457134,-1235.87,0.00054794,120]
[320981510,1711727457143,-543.31,0.00054794,120]
[320981511,1711727457152,-666.0,0.00054794,120]
[320981512,1711727457162,-666.0,0.00054794,120]
[320981513,1711727457170,-666.0,0.00054794,120]
[320981514,1711727457180,-666.0,0.00054794,120]
[320981515,1711727457189,-388.0,0.00054794,120]
[320981516,1711727457199,-1414.23,0.00054794,120]
[320981517,1711727457208,-774.8,0.00054794,120]
[320981518,1711727457218,-500.0,0.00054794,120]
[320981519,1711727457226,-500.0,0.00054794,120]
[320981520,1711727457235,-8767.87,0.00054794,120]
[320981521,1711727457244,-500.0,0.00054794,120]
[320981522,1711727457254,-4545.9,0.00054794,120]
[320981523,1711727457264,-500.0,0.00054794,120]
[320981524,1711727457273,-1435.29,0.00054794,120]
[320981525,1711727457282,-729.96,0.00054794,120]
[320981526,1711727457292,-614.95,0.00054794,120]
[320981527,1711727457301,-628.83,0.00054794,120]
[320981528,1711727457310,-509.47,0.00054794,120]